[Event "*** Titled Tuesday 3|2 Blitz"]
[Site "Chess.com"]
[Date "2016.10.04"]
[Round "8"]
[White "David_Klein"]
[Black "RodinMihail"]
[Result "1/2-1/2"]
[WhiteElo "2388"]
[BlackElo "2351"]
[TimeControl "180+2"]
[EndTime "12:41:07 PDT"]
[Termination "Game drawn - insufficient material"]

1. f4 {[%clk 0:02:59.7]} 1... d5 {[%clk 0:03:00.2]} 2. Nf3 {[%clk 0:02:38.9]}
2... g6 {[%clk 0:03:00.1]} 3. e3 {[%clk 0:02:39.1]} 3... Bg7 {[%clk 0:03:00.9]}
4. Nc3 {[%clk 0:02:37.2]} 4... Nf6 {[%clk 0:02:52.9]} 5. b3 {[%clk 0:02:35]}
5... O-O {[%clk 0:02:53]} 6. Bb2 {[%clk 0:02:36]} 6... c5 {[%clk 0:02:54]} 7.
Ne2 {[%clk 0:02:32.6]} 7... Nc6 {[%clk 0:02:54.4]} 8. Ne5 {[%clk 0:02:33.2]}
8... Nxe5 {[%clk 0:02:45.4]} 9. Bxe5 {[%clk 0:02:35.1]} 9... Ne4 {[%clk
0:02:32.5]} 10. Bxg7 {[%clk 0:02:33.4]} 10... Kxg7 {[%clk 0:02:34.4]} 11. d3
{[%clk 0:02:35]} 11... Nd6 {[%clk 0:02:33.3]} 12. Qd2 {[%clk 0:02:35.8]} 12...
a5 {[%clk 0:02:28.4]} 13. Qc3+ {[%clk 0:02:36.3]} 13... Kg8 {[%clk 0:02:20.7]}
14. Qxc5 {[%clk 0:02:36.8]} 14... Be6 {[%clk 0:02:21.7]} 15. Qa3 {[%clk
0:02:36.4]} 15... a4 {[%clk 0:02:18.6]} 16. Qb2 {[%clk 0:02:35]} 16... axb3
{[%clk 0:02:17.6]} 17. axb3 {[%clk 0:02:35.9]} 17... Qb6 {[%clk 0:02:15.1]} 18.
Nd4 {[%clk 0:02:36.6]} 18... Bd7 {[%clk 0:01:43.4]} 19. Be2 {[%clk 0:02:34]}
19... f6 {[%clk 0:01:44.1]} 20. O-O {[%clk 0:02:33.9]} 20... e5 {[%clk
0:01:44.3]} 21. Rxa8 {[%clk 0:02:23.2]} 21... Rxa8 {[%clk 0:01:42.7]} 22. fxe5
{[%clk 0:02:23.9]} 22... fxe5 {[%clk 0:01:44.6]} 23. Nf3 {[%clk 0:02:24.6]}
23... Qxe3+ {[%clk 0:01:45.3]} 24. Rf2 {[%clk 0:02:26.1]} 24... d4 {[%clk
0:01:41.7]} 25. Bf1 {[%clk 0:02:24.6]} 25... Bc6 {[%clk 0:01:35.9]} 26. Qb1
{[%clk 0:02:03.6]} 26... Bxf3 {[%clk 0:01:36]} 27. gxf3 {[%clk 0:02:05.5]} 27...
Nf5 {[%clk 0:01:36.1]} 28. Bg2 {[%clk 0:02:03.5]} 28... Nh4 {[%clk 0:01:32.8]}
29. Kf1 {[%clk 0:01:58.6]} 29... b5 {[%clk 0:01:28.7]} 30. Re2 {[%clk
0:01:55.5]} 30... Qf4 {[%clk 0:01:28.7]} 31. Kg1 {[%clk 0:01:53.4]} 31... b4
{[%clk 0:01:21.9]} 32. Re4 {[%clk 0:01:48.5]} 32... Qg5 {[%clk 0:01:15.7]} 33.
Rg4 {[%clk 0:01:49.2]} 33... Qe3+ {[%clk 0:01:16.6]} 34. Kh1 {[%clk 0:01:49.8]}
34... Qf2 {[%clk 0:01:08.8]} 35. Qg1 {[%clk 0:01:33.8]} 35... Qxg1+ {[%clk
0:00:55.3]} 36. Kxg1 {[%clk 0:01:35.7]} 36... Nf5 {[%clk 0:00:38.2]} 37. Re4
{[%clk 0:01:22.9]} 37... Ra2 {[%clk 0:00:36.7]} 38. Rxe5 {[%clk 0:01:19.5]}
38... Rxc2 {[%clk 0:00:37.8]} 39. f4 {[%clk 0:01:20.5]} 39... Rc3 {[%clk
0:00:32.3]} 40. Rb5 {[%clk 0:01:18.1]} 40... Rxd3 {[%clk 0:00:31.3]} 41. Rxb4
{[%clk 0:01:19.3]} 41... Ne3 {[%clk 0:00:31.7]} 42. Be4 {[%clk 0:01:19.7]} 42...
Rd2 {[%clk 0:00:32.9]} 43. Rb7 {[%clk 0:01:15.2]} 43... Ng4 {[%clk 0:00:33.2]}
44. h3 {[%clk 0:01:13]} 44... Nf2 {[%clk 0:00:34]} 45. Bd5+ {[%clk 0:01:13.7]}
45... Kf8 {[%clk 0:00:34.4]} 46. Rxh7 {[%clk 0:01:10.3]} 46... d3 {[%clk
0:00:33.4]} 47. Bc4 {[%clk 0:01:10.8]} 47... Ne4 {[%clk 0:00:33.6]} 48. Rd7
{[%clk 0:01:11.3]} 48... Rd1+ {[%clk 0:00:33.3]} 49. Kg2 {[%clk 0:01:12.6]}
49... d2 {[%clk 0:00:35.2]} 50. Be2 {[%clk 0:00:53.8]} 50... Re1 {[%clk
0:00:32]} 51. Bf3 {[%clk 0:00:55]} 51... Ke8 {[%clk 0:00:25.2]} 52. Rd4 {[%clk
0:00:54.5]} 52... Ke7 {[%clk 0:00:26]} 53. Bxe4 {[%clk 0:00:54.4]} 53... d1=Q
{[%clk 0:00:26]} 54. Rxd1 {[%clk 0:00:54.2]} 54... Rxd1 {[%clk 0:00:27.9]} 55.
Bxg6 {[%clk 0:00:55.1]} 55... Kf6 {[%clk 0:00:29.8]} 56. Bh7 {[%clk 0:00:53.3]}
56... Rd4 {[%clk 0:00:24.5]} 57. Kg3 {[%clk 0:00:52.3]} 57... Kg7 {[%clk
0:00:25.4]} 58. Bf5 {[%clk 0:00:52.9]} 58... Kf6 {[%clk 0:00:25.5]} 59. Bh7
{[%clk 0:00:51.1]} 59... Rd7 {[%clk 0:00:26.5]} 60. Be4 {[%clk 0:00:49.6]} 60...
Rd4 {[%clk 0:00:26.6]} 61. Bc6 {[%clk 0:00:50.5]} 61... Kf5 {[%clk 0:00:25.3]}
62. Bb5 {[%clk 0:00:35.6]} 62... Rxf4 {[%clk 0:00:25.4]} 63. Bd3+ {[%clk
0:00:36.6]} 63... Kg5 {[%clk 0:00:26]} 64. Bc4 {[%clk 0:00:38.5]} 64... Re4
{[%clk 0:00:21.6]} 65. Bd5 {[%clk 0:00:37.6]} 65... Re3+ {[%clk 0:00:21.9]} 66.
Kg2 {[%clk 0:00:37.7]} 66... Rd3 {[%clk 0:00:22.8]} 67. Bc4 {[%clk 0:00:38.6]}
67... Rc3 {[%clk 0:00:24.3]} 68. Kf2 {[%clk 0:00:38.6]} 68... Rxh3 {[%clk
0:00:23.7]} 69. Ke2 {[%clk 0:00:40.2]} 69... Kf4 {[%clk 0:00:24.5]} 70. Kd2
{[%clk 0:00:41.6]} 70... Ke4 {[%clk 0:00:25.5]} 71. Be6 {[%clk 0:00:41.2]} 71...
Rg3 {[%clk 0:00:24.9]} 72. Kc2 {[%clk 0:00:42.3]} 72... Kd4 {[%clk 0:00:26.1]}
73. Kb2 {[%clk 0:00:43.4]} 73... Rg2+ {[%clk 0:00:26]} 74. Ka3 {[%clk
0:00:44.5]} 74... Kc3 {[%clk 0:00:27.6]} 75. Ka4 {[%clk 0:00:44.6]} 75... Re2
{[%clk 0:00:27.9]} 76. Bc4 {[%clk 0:00:45.2]} 76... Re5 {[%clk 0:00:27.6]} 77.
Bg8 {[%clk 0:00:44.7]} 77... Rg5 {[%clk 0:00:28.4]} 78. Bc4 {[%clk 0:00:45.6]}
78... Rf5 {[%clk 0:00:26.9]} 79. Be6 {[%clk 0:00:46.5]} 79... Rf6 {[%clk
0:00:27.8]} 80. Bc4 {[%clk 0:00:47.6]} 80... Rb6 {[%clk 0:00:27.6]} 81. Ka5
{[%clk 0:00:48.2]} 81... Rxb3 {[%clk 0:00:28.7]} 82. Bxb3 {[%clk 0:00:50.1]}
1/2-1/2

[Event "*** Titled Tuesday 3|2 Blitz"]
[Site "Chess.com"]
[Date "2016.10.04"]
[Round "8"]
[White "Sanan_Sjugirov"]
[Black "LuckyTiger"]
[Result "1/2-1/2"]
[WhiteElo "2684"]
[BlackElo "2585"]
[TimeControl "180+2"]
[EndTime "12:42:30 PDT"]
[Termination "Game drawn - insufficient material"]

1. d4 {[%clk 0:03:01.9]} 1... Nf6 {[%clk 0:03:00.9]} 2. Nf3 {[%clk 0:03:03.1]}
2... c5 {[%clk 0:02:56]} 3. d5 {[%clk 0:03:03.9]} 3... e6 {[%clk 0:02:57.3]} 4.
c4 {[%clk 0:03:00.3]} 4... b5 {[%clk 0:02:58.4]} 5. Bg5 {[%clk 0:02:37.2]} 5...
exd5 {[%clk 0:02:51.5]} 6. cxd5 {[%clk 0:02:34.7]} 6... d6 {[%clk 0:02:52.7]} 7.
e4 {[%clk 0:02:32.1]} 7... a6 {[%clk 0:02:47.9]} 8. a4 {[%clk 0:02:32.3]} 8...
Be7 {[%clk 0:02:36.7]} 9. Nbd2 {[%clk 0:01:53]} 9... O-O {[%clk 0:02:23]} 10.
axb5 {[%clk 0:01:50.6]} 10... Nxd5 {[%clk 0:02:22.7]} 11. Bxe7 {[%clk 0:01:49]}
11... Nxe7 {[%clk 0:02:23.2]} 12. Be2 {[%clk 0:01:45]} 12... Bb7 {[%clk
0:02:21.5]} 13. bxa6 {[%clk 0:01:38.4]} 13... Nxa6 {[%clk 0:02:23.4]} 14. O-O
{[%clk 0:01:36]} 14... Nb4 {[%clk 0:02:21.2]} 15. Qb3 {[%clk 0:01:31.4]} 15...
d5 {[%clk 0:02:17]} 16. exd5 {[%clk 0:01:31.3]} 16... Nexd5 {[%clk 0:02:18.9]}
17. Rxa8 {[%clk 0:01:29.4]} 17... Bxa8 {[%clk 0:02:19.2]} 18. Qc4 {[%clk
0:01:24.9]} 18... Qf6 {[%clk 0:02:08.8]} 19. Qxc5 {[%clk 0:01:13.8]} 19... Qxb2
{[%clk 0:01:48.3]} 20. Rb1 {[%clk 0:01:13.5]} 20... Qa3 {[%clk 0:01:49.5]} 21.
Bc4 {[%clk 0:01:10.8]} 21... Qc3 {[%clk 0:01:17.5]} 22. Ne4 {[%clk 0:01:08.9]}
22... Qc2 {[%clk 0:01:08.7]} 23. Nfd2 {[%clk 0:01:08.8]} 23... Nd3 {[%clk
0:00:53.7]} 24. Bxd3 {[%clk 0:00:41.2]} 24... Qxd3 {[%clk 0:00:55.6]} 25. Qd6
{[%clk 0:00:24.9]} 25... h5 {[%clk 0:00:12.2]} 26. Rb8 {[%clk 0:00:23]} 26...
Rxb8 {[%clk 0:00:13.2]} 27. Qxb8+ {[%clk 0:00:24.9]} 27... Kh7 {[%clk
0:00:15.1]} 28. Qxa8 {[%clk 0:00:23.4]} 28... Nf4 {[%clk 0:00:16.7]} 29. Qa1
{[%clk 0:00:13.2]} 29... f6 {[%clk 0:00:16.6]} 30. Qf1 {[%clk 0:00:12.7]} 30...
Qd4 {[%clk 0:00:17.5]} 31. g3 {[%clk 0:00:13]} 31... Ne6 {[%clk 0:00:16.9]} 32.
Qe2 {[%clk 0:00:13.3]} 32... Qe5 {[%clk 0:00:16.3]} 33. Nf3 {[%clk 0:00:13.2]}
33... Qd5 {[%clk 0:00:13.1]} 34. Nc3 {[%clk 0:00:12.8]} 34... Qb3 {[%clk
0:00:12.8]} 35. Qe4+ {[%clk 0:00:12.5]} 35... Kg8 {[%clk 0:00:13.4]} 36. Qe3
{[%clk 0:00:12.3]} 36... Qc4 {[%clk 0:00:13.8]} 37. Nd2 {[%clk 0:00:13.2]} 37...
Qc6 {[%clk 0:00:14.7]} 38. Qe4 {[%clk 0:00:13.2]} 38... Qa6 {[%clk 0:00:14.1]}
39. Qc4 {[%clk 0:00:13.3]} 39... Qb6 {[%clk 0:00:09.2]} 40. Nd5 {[%clk
0:00:12.2]} 40... Qd4 {[%clk 0:00:08.5]} 41. Qxd4 {[%clk 0:00:12.5]} 41... Nxd4
{[%clk 0:00:10.4]} 42. Nf4 {[%clk 0:00:13.7]} 42... h4 {[%clk 0:00:10.9]} 43.
gxh4 {[%clk 0:00:14.2]} 43... Kf7 {[%clk 0:00:11]} 44. h5 {[%clk 0:00:15.3]}
44... Nc6 {[%clk 0:00:08.5]} 45. Kg2 {[%clk 0:00:16.5]} 45... Nd4 {[%clk
0:00:08.2]} 46. Nf3 {[%clk 0:00:16.7]} 46... Nf5 {[%clk 0:00:09.5]} 47. Kh3
{[%clk 0:00:17.1]} 47... Nh6 {[%clk 0:00:09.7]} 48. Nh4 {[%clk 0:00:17]} 48...
f5 {[%clk 0:00:08.7]} 49. Kg3 {[%clk 0:00:17.8]} 49... Kf6 {[%clk 0:00:10.1]}
50. h3 {[%clk 0:00:18.5]} 50... Nf7 {[%clk 0:00:10]} 51. Nf3 {[%clk 0:00:18.9]}
51... Nd6 {[%clk 0:00:11.1]} 52. h4 {[%clk 0:00:18.7]} 52... Ne4+ {[%clk
0:00:12]} 53. Kg2 {[%clk 0:00:20]} 53... Nd6 {[%clk 0:00:13.3]} 54. Ng5 {[%clk
0:00:21]} 54... Nc4 {[%clk 0:00:13.4]} 55. Nd5+ {[%clk 0:00:21]} 55... Ke5
{[%clk 0:00:13.8]} 56. Ne3 {[%clk 0:00:21.9]} 56... Nd6 {[%clk 0:00:13]} 57. Kf3
{[%clk 0:00:23.2]} 57... Nb5 {[%clk 0:00:11.7]} 58. Nc4+ {[%clk 0:00:23]} 58...
Kd5 {[%clk 0:00:10.7]} 59. Nb6+ {[%clk 0:00:19.6]} 59... Ke5 {[%clk 0:00:11.7]}
60. Ke3 {[%clk 0:00:20.6]} 60... f4+ {[%clk 0:00:07.7]} 61. Kf3 {[%clk 0:00:21]}
61... Kf5 {[%clk 0:00:09.2]} 62. Kg2 {[%clk 0:00:18.4]} 62... Kg4 {[%clk
0:00:07.4]} 63. Nd5 {[%clk 0:00:17.5]} 63... Kxh4 {[%clk 0:00:03.9]} 64. Nf3+
{[%clk 0:00:16.9]} 64... Kxh5 {[%clk 0:00:05.1]} 65. Nxf4+ {[%clk 0:00:18]}
65... Kg4 {[%clk 0:00:06]} 66. Ne6 {[%clk 0:00:17.3]} 66... Nd6 {[%clk
0:00:06.1]} 67. Nxg7 {[%clk 0:00:13.8]} 67... Ne4 {[%clk 0:00:04.8]} 68. Ne5+
{[%clk 0:00:14.2]} 68... Kf4 {[%clk 0:00:04.2]} 69. Nd3+ {[%clk 0:00:14.5]}
69... Kg5 {[%clk 0:00:02.6]} 70. f3 {[%clk 0:00:11.6]} 70... Nd2 {[%clk
0:00:03.8]} 71. f4+ {[%clk 0:00:12.3]} 71... Kg6 {[%clk 0:00:05.2]} 72. Ne6
{[%clk 0:00:11.4]} 72... Kf5 {[%clk 0:00:06.6]} 73. Ng7+ {[%clk 0:00:07.1]}
73... Ke4 {[%clk 0:00:06.8]} 74. f5 {[%clk 0:00:04.6]} 74... Nc4 {[%clk
0:00:08.1]} 75. f6 {[%clk 0:00:04.9]} 75... Nd6 {[%clk 0:00:09]} 76. Nf2+ {[%clk
0:00:02.4]} 76... Kf4 {[%clk 0:00:08.4]} 77. Kh3 {[%clk 0:00:03.5]} 77... Nf7
{[%clk 0:00:07.1]} 78. Ng4 {[%clk 0:00:04.3]} 78... Kg5 {[%clk 0:00:07.7]} 79.
Ne6+ {[%clk 0:00:05.1]} 79... Kf5 {[%clk 0:00:08.8]} 80. Nd4+ {[%clk 0:00:06.2]}
80... Ke4 {[%clk 0:00:09.8]} 81. Ne6 {[%clk 0:00:06.7]} 81... Kf5 {[%clk
0:00:10.9]} 82. Ng7+ {[%clk 0:00:07.7]} 82... Kg6 {[%clk 0:00:11.3]} 83. Kh4
{[%clk 0:00:08.7]} 83... Nh6 {[%clk 0:00:10.7]} 84. Ne6 {[%clk 0:00:04.3]} 84...
Nxg4 {[%clk 0:00:10.8]} 85. Kxg4 {[%clk 0:00:05.9]} 85... Kxf6 {[%clk 0:00:12]}
1/2-1/2

[Event "*** Titled Tuesday 3|2 Blitz"]
[Site "Chess.com"]
[Date "2016.10.04"]
[Round "8"]
[White "Wolverine_master"]
[Black "keisyzrk"]
[Result "1/2-1/2"]
[WhiteElo "2069"]
[BlackElo "2288"]
[TimeControl "180+2"]
[EndTime "12:42:50 PDT"]
[Termination "Game drawn by repetition"]

1. e4 {[%clk 0:03:01.9]} 1... e6 {[%clk 0:02:59.5]} 2. d4 {[%clk 0:03:02.3]}
2... d5 {[%clk 0:03:01.1]} 3. Nd2 {[%clk 0:03:03.8]} 3... a6 {[%clk 0:03:00.8]}
4. c4 {[%clk 0:03:01.9]} 4... dxc4 {[%clk 0:02:58.3]} 5. Nxc4 {[%clk 0:03:01.2]}
5... b5 {[%clk 0:02:59.5]} 6. Ne5 {[%clk 0:02:57.4]} 6... Bb7 {[%clk 0:02:57.7]}
7. f3 {[%clk 0:02:48.6]} 7... Bb4+ {[%clk 0:02:58]} 8. Kf2 {[%clk 0:02:38.7]}
8... Nf6 {[%clk 0:02:44.1]} 9. Be3 {[%clk 0:02:29.3]} 9... O-O {[%clk 0:02:42]}
10. Be2 {[%clk 0:02:17.9]} 10... Nbd7 {[%clk 0:02:41]} 11. Nxd7 {[%clk
0:02:17.6]} 11... Nxd7 {[%clk 0:02:40.5]} 12. Nh3 {[%clk 0:02:14.7]} 12... c5
{[%clk 0:02:35]} 13. a3 {[%clk 0:02:07.7]} 13... cxd4 {[%clk 0:02:35]} 14. Bxd4
{[%clk 0:02:04.5]} 14... Be7 {[%clk 0:02:08.4]} 15. Re1 {[%clk 0:01:43.2]} 15...
e5 {[%clk 0:02:02.2]} 16. Be3 {[%clk 0:01:40.4]} 16... Bc5 {[%clk 0:01:40.1]}
17. Bxc5 {[%clk 0:01:38.4]} 17... Nxc5 {[%clk 0:01:42]} 18. Qxd8 {[%clk
0:01:39.2]} 18... Rfxd8 {[%clk 0:01:43.6]} 19. Rad1 {[%clk 0:01:04.7]} 19... Ne6
{[%clk 0:01:42.1]} 20. Rxd8+ {[%clk 0:01:03.2]} 20... Rxd8 {[%clk 0:01:42.3]}
21. Rd1 {[%clk 0:00:50.3]} 21... Nd4 {[%clk 0:01:39.2]} 22. Ng1 {[%clk
0:00:39.9]} 22... Rc8 {[%clk 0:01:39.5]} 23. Bd3 {[%clk 0:00:39.5]} 23... f6
{[%clk 0:01:32.1]} 24. Ne2 {[%clk 0:00:38.5]} 24... Nb3 {[%clk 0:01:33.4]} 25.
Nc3 {[%clk 0:00:32.6]} 25... Nd4 {[%clk 0:01:26.9]} 26. Ne2 {[%clk 0:00:31.1]}
26... Rd8 {[%clk 0:01:23]} 27. Nxd4 {[%clk 0:00:30.1]} 27... Rxd4 {[%clk
0:01:24.9]} 28. Be2 {[%clk 0:00:30]} 28... Rxd1 {[%clk 0:01:26]} 29. Bxd1 {[%clk
0:00:30.7]} 29... Kf7 {[%clk 0:01:27.6]} 30. Bb3+ {[%clk 0:00:30.7]} 30... Ke7
{[%clk 0:01:29]} 31. Ke3 {[%clk 0:00:30.4]} 31... Kd6 {[%clk 0:01:30.5]} 32. Kd3
{[%clk 0:00:29.5]} 32... Kc5 {[%clk 0:01:31.7]} 33. Bg8 {[%clk 0:00:29.3]} 33...
h6 {[%clk 0:01:32.5]} 34. b4+ {[%clk 0:00:30.4]} 34... Kd6 {[%clk 0:01:31.9]}
35. Bb3 {[%clk 0:00:28.5]} 35... g6 {[%clk 0:01:33]} 36. Bf7 {[%clk 0:00:28.4]}
36... g5 {[%clk 0:01:32]} 37. Bg8 {[%clk 0:00:27]} 37... Bc8 {[%clk 0:01:32.5]}
38. Bd5 {[%clk 0:00:26.4]} 38... f5 {[%clk 0:01:29.7]} 39. Bg8 {[%clk
0:00:26.1]} 39... g4 {[%clk 0:01:12.7]} 40. exf5 {[%clk 0:00:15.5]} 40... Bxf5+
{[%clk 0:01:12.7]} 41. Ke3 {[%clk 0:00:16.2]} 41... gxf3 {[%clk 0:01:13.2]} 42.
Kxf3 {[%clk 0:00:15.7]} 42... Bd3 {[%clk 0:01:02.9]} 43. g4 {[%clk 0:00:10.7]}
43... Bc2 {[%clk 0:00:46.9]} 44. h4 {[%clk 0:00:09.3]} 44... Bd1+ {[%clk
0:00:47.7]} 45. Kg3 {[%clk 0:00:08.6]} 45... Be2 {[%clk 0:00:44.9]} 46. g5
{[%clk 0:00:09.1]} 46... hxg5 {[%clk 0:00:46.3]} 47. hxg5 {[%clk 0:00:11]} 47...
Bc4 {[%clk 0:00:47.3]} 48. Bh7 {[%clk 0:00:09.8]} 48... Ke6 {[%clk 0:00:48.5]}
49. Kf3 {[%clk 0:00:08.3]} 49... Bd5+ {[%clk 0:00:41.1]} 50. Ke3 {[%clk
0:00:09]} 50... Bc4 {[%clk 0:00:41.2]} 51. Bg8+ {[%clk 0:00:09]} 51... Kf5
{[%clk 0:00:41]} 52. Bxc4 {[%clk 0:00:05.5]} 52... bxc4 {[%clk 0:00:42.9]} 53.
a4 {[%clk 0:00:07]} 53... e4 {[%clk 0:00:28.1]} 54. b5 {[%clk 0:00:07.5]} 54...
c3 {[%clk 0:00:28.7]} 55. bxa6 {[%clk 0:00:06.5]} 55... c2 {[%clk 0:00:27]} 56.
Kd2 {[%clk 0:00:07.5]} 56... Kf4 {[%clk 0:00:27]} 57. Kxc2 {[%clk 0:00:08.3]}
57... Kf3 {[%clk 0:00:28.6]} 58. Kd1 {[%clk 0:00:08.6]} 58... Kf2 {[%clk
0:00:28.6]} 59. a7 {[%clk 0:00:04.8]} 59... e3 {[%clk 0:00:30.2]} 60. a8=Q
{[%clk 0:00:05.6]} 60... e2+ {[%clk 0:00:32.1]} 61. Kc2 {[%clk 0:00:06.7]} 61...
e1=Q {[%clk 0:00:32.8]} 62. Qf8+ {[%clk 0:00:06]} 62... Kg3 {[%clk 0:00:33.7]}
63. Qf6 {[%clk 0:00:04.7]} 63... Qe2+ {[%clk 0:00:34.6]} 64. Kb3 {[%clk
0:00:05.6]} 64... Qd1+ {[%clk 0:00:34.4]} 65. Kb4 {[%clk 0:00:06.9]} 65... Qb1+
{[%clk 0:00:34.7]} 66. Ka5 {[%clk 0:00:08]} 66... Qe1+ {[%clk 0:00:34.2]} 67.
Kb6 {[%clk 0:00:08.9]} 67... Qb1+ {[%clk 0:00:33.6]} 68. Ka6 {[%clk 0:00:09.1]}
68... Qd3+ {[%clk 0:00:34.3]} 69. Kb6 {[%clk 0:00:08.4]} 69... Qb3+ {[%clk
0:00:32.9]} 70. Ka5 {[%clk 0:00:08.1]} 70... Qd5+ {[%clk 0:00:33.8]} 71. Ka6
{[%clk 0:00:07.6]} 71... Qc4+ {[%clk 0:00:34]} 72. Ka5 {[%clk 0:00:08.7]} 72...
Qd5+ {[%clk 0:00:34.8]} 73. Kb4 {[%clk 0:00:07.6]} 73... Qd2+ {[%clk 0:00:34.4]}
74. Kb5 {[%clk 0:00:08.8]} 74... Qd3+ {[%clk 0:00:33.8]} 75. Kb6 {[%clk
0:00:09.7]} 75... Qb3+ {[%clk 0:00:33.8]} 76. Kc7 {[%clk 0:00:10.6]} 76... Qxa4
{[%clk 0:00:32.9]} 77. g6 {[%clk 0:00:11.1]} 77... Qa7+ {[%clk 0:00:33.3]} 78.
Kd8 {[%clk 0:00:12]} 78... Qb8+ {[%clk 0:00:33.3]} 79. Ke7 {[%clk 0:00:13]}
79... Qc7+ {[%clk 0:00:34.3]} 80. Kf8 {[%clk 0:00:13.9]} 80... Qc5+ {[%clk
0:00:34.4]} 81. Kg8 {[%clk 0:00:14.1]} 81... Qd5+ {[%clk 0:00:35.4]} 82. Qf7
{[%clk 0:00:11.5]} 82... Qg5 {[%clk 0:00:33.9]} 83. g7 {[%clk 0:00:10.5]} 83...
Qd8+ {[%clk 0:00:25.2]} 84. Qf8 {[%clk 0:00:10.4]} 84... Qd5+ {[%clk 0:00:26.1]}
85. Qf7 {[%clk 0:00:09]} 85... Qd8+ {[%clk 0:00:26.2]} 86. Kh7 {[%clk 0:00:07]}
86... Qh4+ {[%clk 0:00:27.2]} 87. Kg8 {[%clk 0:00:06.6]} 87... Qd8+ {[%clk
0:00:28.2]} 88. Qf8 {[%clk 0:00:07.2]} 88... Qd5+ {[%clk 0:00:29.2]} 89. Kh8
{[%clk 0:00:08.5]} 89... Qh5+ {[%clk 0:00:29.7]} 90. Kg8 {[%clk 0:00:08.9]}
90... Qd5+ {[%clk 0:00:29.8]} 91. Qf7 {[%clk 0:00:10.1]} 91... Qd8+ {[%clk
0:00:30.5]} 92. Kh7 {[%clk 0:00:10.9]} 92... Qh4+ {[%clk 0:00:31.5]} 93. Kg8
{[%clk 0:00:12.3]} 93... Qd8+ {[%clk 0:00:32]} 1/2-1/2

[Event "*** Titled Tuesday 3|2 Blitz"]
[Site "Chess.com"]
[Date "2016.10.04"]
[Round "9"]
[White "Holden-Caulfield"]
[Black "jncool68"]
[Result "1-0"]
[WhiteElo "2485"]
[BlackElo "2455"]
[TimeControl "180+2"]
[EndTime "12:46:52 PDT"]
[Termination "Holden-Caulfield won by resignation"]

1. d4 {[%clk 0:03:01.9]} 1... Nf6 {[%clk 0:03:00.3]} 2. Nf3 {[%clk 0:03:03.2]}
2... e6 {[%clk 0:03:01.5]} 3. Bg5 {[%clk 0:03:03.1]} 3... h6 {[%clk 0:03:01.4]}
4. Bh4 {[%clk 0:03:03.7]} 4... b6 {[%clk 0:03:01.2]} 5. e3 {[%clk 0:03:04.2]}
5... Bb7 {[%clk 0:03:02.7]} 6. Nbd2 {[%clk 0:03:04.9]} 6... c5 {[%clk
0:03:03.7]} 7. c3 {[%clk 0:03:05.9]} 7... Be7 {[%clk 0:03:02.9]} 8. h3 {[%clk
0:03:07.2]} 8... O-O {[%clk 0:03:01.7]} 9. Bg3 {[%clk 0:03:08.3]} 9... cxd4
{[%clk 0:03:02.1]} 10. exd4 {[%clk 0:03:09.1]} 10... Nd5 {[%clk 0:02:58.1]} 11.
Bc4 {[%clk 0:03:05.5]} 11... f5 {[%clk 0:02:58.9]} 12. O-O {[%clk 0:03:05.3]}
12... Na6 {[%clk 0:02:50]} 13. Re1 {[%clk 0:03:05.8]} 13... Nac7 {[%clk
0:02:50.8]} 14. Ne5 {[%clk 0:03:05.8]} 14... Rc8 {[%clk 0:02:51.1]} 15. Ng6
{[%clk 0:03:02.7]} 15... Rf7 {[%clk 0:02:50.7]} 16. Nxe7+ {[%clk 0:03:03.7]}
16... Qxe7 {[%clk 0:02:51.7]} 17. Nf3 {[%clk 0:03:02.2]} 17... f4 {[%clk
0:02:51.2]} 18. Bh2 {[%clk 0:03:03.2]} 18... d6 {[%clk 0:02:40.6]} 19. Qe2
{[%clk 0:03:03.8]} 19... g5 {[%clk 0:02:35.1]} 20. Nd2 {[%clk 0:02:53.7]} 20...
Rcf8 {[%clk 0:02:32.5]} 21. Qh5 {[%clk 0:02:48.2]} 21... Qf6 {[%clk 0:02:29.4]}
22. Ne4 {[%clk 0:02:45.8]} 22... Qg7 {[%clk 0:02:28]} 23. Nxd6 {[%clk
0:02:44.6]} 23... Bc6 {[%clk 0:02:28.9]} 24. Nxf7 {[%clk 0:02:44.2]} 24... Rxf7
{[%clk 0:02:30.8]} 25. Rad1 {[%clk 0:02:42.3]} 25... Nf6 {[%clk 0:02:24]} 26.
Qe2 {[%clk 0:02:41.1]} 26... f3 {[%clk 0:02:25.3]} 27. gxf3 {[%clk 0:02:36.9]}
27... Nd7 {[%clk 0:02:06.3]} 28. Bxc7 {[%clk 0:02:35.5]} 28... Bxf3 {[%clk
0:02:07.3]} 29. Qxe6 {[%clk 0:02:35.2]} 1-0

[Event "*** Titled Tuesday 3|2 Blitz"]
[Site "Chess.com"]
[Date "2016.10.04"]
[Round "9"]
[White "QuintilianoR"]
[Black "CheckThis4"]
[Result "1-0"]
[WhiteElo "2408"]
[BlackElo "2331"]
[TimeControl "180+2"]
[EndTime "12:48:43 PDT"]
[Termination "QuintilianoR won by resignation"]

1. d4 {[%clk 0:03:01.9]} 1... d5 {[%clk 0:02:58.9]} 2. Nc3 {[%clk 0:03:03.1]}
2... Nf6 {[%clk 0:02:58.9]} 3. Bf4 {[%clk 0:03:03.6]} 3... g6 {[%clk 0:02:33.6]}
4. Qd2 {[%clk 0:03:03.4]} 4... Bg7 {[%clk 0:02:34.4]} 5. f3 {[%clk 0:03:04.7]}
5... O-O {[%clk 0:02:34.6]} 6. g4 {[%clk 0:03:05.5]} 6... c5 {[%clk 0:02:33.2]}
7. e3 {[%clk 0:03:03.6]} 7... Nc6 {[%clk 0:02:32.4]} 8. O-O-O {[%clk 0:03:00.7]}
8... Qa5 {[%clk 0:01:57.2]} 9. h4 {[%clk 0:02:58.9]} 9... Nd7 {[%clk 0:01:43.2]}
10. h5 {[%clk 0:02:42.1]} 10... e5 {[%clk 0:01:40.8]} 11. dxe5 {[%clk
0:02:41.2]} 11... Ndxe5 {[%clk 0:01:41.1]} 12. hxg6 {[%clk 0:02:31.3]} 12...
hxg6 {[%clk 0:01:38.2]} 13. Qh2 {[%clk 0:01:54.2]} 13... Rd8 {[%clk 0:01:26.8]}
14. Qh7+ {[%clk 0:01:54]} 14... Kf8 {[%clk 0:01:27.1]} 15. Bh6 {[%clk
0:01:55.1]} 15... Bxh6 {[%clk 0:01:25.9]} 16. Qxh6+ {[%clk 0:01:57]} 16... Ke8
{[%clk 0:01:11.8]} 17. Qh8+ {[%clk 0:01:35.6]} 17... Ke7 {[%clk 0:01:02.9]} 18.
Qh4+ {[%clk 0:01:35.7]} 18... Kd7 {[%clk 0:00:49.2]} 19. Rxd5+ {[%clk
0:01:34.8]} 19... Kc7 {[%clk 0:00:48.4]} 20. Rxd8 {[%clk 0:01:35.4]} 20... Nxd8
{[%clk 0:00:48.9]} 21. Qe7+ {[%clk 0:01:36]} 21... Nd7 {[%clk 0:00:46.5]} 22.
Nb5+ {[%clk 0:01:36.2]} 22... Kb6 {[%clk 0:00:45.6]} 23. Qxd8+ {[%clk
0:01:36.5]} 1-0